bitfinex/quotes_SOLUSD_20240621
["timestamp","ask_amount","ask_price","bid_price","bid_amount"]
[1718940637299,0.34,132.42,132.39,20.74564994]
[1718940638580,0.17,132.42,132.39,20.74564994]
[1718940639105,0.51,132.43,132.39,20.74564994]
[1718940639295,0.51,132.43,132.39,30.30564994]
[1718940639898,0.51,132.43,132.39,20.74564994]
[1718940639899,10.07,132.43,132.39,20.74564994]
[1718940640702,15.3439,132.45,132.39,30.30564994]
[1718940640904,15.6307,132.49,132.42,9.56]
[1718940641200,15.6307,132.49,132.43,20.0]
[1718940641379,9.56,132.46,132.43,20.0]
[1718940641579,17.97351081,132.49,132.43,20.0]
[1718940641780,9.56,132.46,132.41,20.0]
[1718940642204,9.56,132.45,132.39,0.74564994]
[1718940642404,0.34,132.44,132.4,9.56]
[1718940642705,0.34,132.44,132.41,20.0]
[1718940642899,0.17,132.44,132.41,20.0]
[1718940643094,24.10550794,132.49,132.42,9.56]
[1718940643404,9.56,132.47,132.43,20.0]
[1718940643605,0.17,132.46,132.43,20.0]
[1718940644200,9.56,132.48,132.43,20.0]
[1718940644510,21.76269713,132.49,132.43,20.0]
[1718940644706,9.56,132.48,132.43,9.56]
[1718940644903,9.56,132.48,132.44,20.0]
[1718940645703,17.39619482,132.51,132.46,9.56]
[1718940645909,16.225,132.53,132.47,20.0]
[1718940646206,9.56,132.5,132.47,20.0]
[1718940646435,9.56,132.5,132.45,20.0]
[1718940646787,24.76395648,132.53,132.45,20.0]
[1718940647003,9.56,132.5,132.45,29.56]
[1718940647409,9.56,132.5,132.45,20.0]
[1718940647814,9.56,132.5,132.45,0.12508884]
[1718940648009,9.56,132.51,132.45,0.12508884]
[1718940648211,9.56,132.51,132.44,20.0]
[1718940648212,9.56,132.47,132.44,20.0]
[1718940648417,0.51,132.46,132.41,0.6205611]
[1718940648707,10.07,132.46,132.41,0.6205611]
[1718940651316,0.51,132.46,132.41,10.1805611]
[1718940651534,10.07,132.46,132.42,20.0]
[1718940651706,0.51,132.46,132.42,20.0]
[1718940651912,10.07,132.46,132.42,20.0]
[1718940652528,10.07,132.46,132.41,0.6205611]
[1718940653524,9.56,132.45,132.41,0.6205611]
[1718940653704,0.34,132.44,132.41,0.6205611]
[1718940654233,9.9,132.44,132.41,0.6205611]
[1718940654996,0.17,132.43,132.41,0.6205611]
[1718940655917,0.34,132.44,132.41,0.6205611]
[1718940656428,0.34,132.44,132.41,20.6205611]
[1718940656606,9.56,132.42,132.36,1.6754233]
[1718940656922,9.73,132.41,132.36,11.2354233]
[1718940657100,0.17,132.4,132.36,11.2354233]
[1718940657301,0.51,132.4,132.37,9.56]
[1718940657497,0.17,132.39,132.37,9.56]
[1718940657719,0.17,132.39,132.36,1.6754233]
[1718940658033,0.17,132.39,132.37,9.56]
[1718940658319,0.17,132.4,132.37,9.56]
[1718940658494,0.51,132.41,132.37,9.56]
[1718940658928,0.51,132.41,132.38,20.0]
[1718940659623,0.51,132.41,132.37,9.56]
[1718940659819,0.51,132.41,132.38,20.0]
[1718940661025,0.51,132.41,132.37,9.56]
[1718940661335,10.07,132.41,132.38,20.0]
[1718940661500,9.56,132.4,132.38,20.0]
[1718940661701,10.07,132.41,132.38,20.0]
[1718940661900,0.34,132.41,132.36,31.2354233]
[1718940662126,0.34,132.41,132.36,11.2354233]
[1718940662425,0.34,132.41,132.37,20.0]
[1718940663197,6.5678,132.44,132.37,20.0]
[1718940663431,9.73,132.43,132.37,29.56]
[1718940663617,9.9,132.43,132.37,29.56]
[1718940663931,0.34,132.43,132.37,29.56]
[1718940664306,7.83800737,132.46,132.4,9.56]
[1718940664510,9.56,132.46,132.41,20.0]
[1718940665120,9.56,132.45,132.41,20.0]
[1718940665313,9.56,132.44,132.41,20.0]
[1718940665641,6.24339347,132.47,132.39,9.56]
[1718940665836,9.56,132.46,132.4,20.0]
[1718940666517,9.56,132.46,132.38,20.0]
[1718940667405,9.56,132.45,132.4,9.56]
[1718940667632,9.56,132.45,132.39,9.56]
[1718940667800,9.56,132.44,132.4,20.0]
[1718940668312,0.17,132.43,132.4,20.0]
[1718940668519,0.17,132.43,132.39,20.0]
[1718940669111,0.51,132.43,132.39,20.0]
[1718940669311,9.56,132.42,132.38,20.0]
[1718940669508,0.17,132.41,132.36,1.6754233]
[1718940669713,9.56,132.41,132.36,11.2354233]
[1718940669924,0.17,132.43,132.37,29.56]
[1718940670228,10.07,132.43,132.37,29.56]
[1718940670609,0.51,132.43,132.37,29.56]
[1718940670830,10.07,132.43,132.37,29.56]
[1718940671225,0.51,132.43,132.37,29.56]
[1718940671528,9.9,132.43,132.37,29.56]
[1718940672839,9.56,132.42,132.37,20.0]
[1718940673003,15.7082,132.43,132.36,11.2354233]
[1718940673202,24.9282,132.43,132.37,29.56]
[1718940673407,15.3682,132.43,132.38,29.56]
[1718940673607,15.3682,132.43,132.38,9.56]
[1718940673841,0.17,132.44,132.39,20.0]
[1718940674048,9.56,132.44,132.39,20.0]
[1718940674413,0.17,132.43,132.39,20.0]
[1718940674842,0.17,132.43,132.37,9.56]
[1718940675033,9.73,132.43,132.38,20.0]
[1718940675215,0.17,132.42,132.38,20.0]
[1718940675747,0.17,132.42,132.36,1.6754233]
[1718940675908,9.56,132.39,132.36,1.6754233]
[1718940676108,9.73,132.4,132.36,1.6754233]
[1718940676336,9.56,132.4,132.36,1.6754233]
[1718940676817,9.73,132.39,132.36,1.6754233]
[1718940677043,0.17,132.38,132.36,1.6754233]
[1718940677355,0.34,132.38,132.36,1.6754233]
[1718940677722,9.56,132.37,132.33,0.40989172]
[1718940677916,0.34,132.36,132.33,0.40989172]
[1718940678124,9.73,132.36,132.33,0.40989172]
[1718940678338,9.73,132.35,132.33,0.40989172]
[1718940678550,0.17,132.36,132.33,0.40989172]
[1718940678712,9.56,132.34,132.33,0.40989172]
[1718940678918,9.56,132.34,132.33,1.44098764]
[1718940678919,0.34,132.34,132.33,1.44098764]
[1718940679649,6.30543844,132.42,132.33,1.44098764]
[1718940679946,22.7069,132.43,132.33,1.44098764]
[1718940680120,2.34281081,132.42,132.33,1.44098764]
[1718940680815,0.17,132.41,132.33,1.44098764]
[1718940681227,0.34,132.41,132.33,1.44098764]
[1718940681433,0.17,132.4,132.33,1.44098764]
[1718940681729,0.34,132.4,132.33,1.44098764]
[1718940681927,0.17,132.39,132.33,1.44098764]
[1718940682128,0.34,132.39,132.33,1.44098764]
[1718940682329,0.17,132.38,132.33,1.44098764]
[1718940683149,0.17,132.39,132.33,1.44098764]
[1718940684663,0.34,132.39,132.33,1.44098764]
[1718940684938,0.17,132.38,132.33,1.44098764]
[1718940686457,0.17,132.39,132.33,1.44098764]
[1718940686820,10.18749165,132.42,132.33,1.44098764]
[1718940687039,2.34281081,132.42,132.33,1.44098764]
[1718940688725,0.17,132.41,132.33,1.44098764]
[1718940689532,0.34,132.41,132.33,1.44098764]
[1718940689732,0.17,132.4,132.33,1.44098764]
[1718940691556,0.34,132.4,132.33,1.44098764]
[1718940691726,0.17,132.39,132.33,1.44098764]
[1718940691926,0.34,132.39,132.33,1.44098764]
[1718940692553,0.17,132.38,132.33,1.44098764]
[1718940694849,0.34,132.38,132.33,1.44098764]
[1718940695040,0.17,132.37,132.33,1.44098764]
[1718940695345,0.34,132.37,132.33,1.44098764]
[1718940695871,0.17,132.36,132.33,1.44098764]
[1718940696038,0.34,132.36,132.33,1.44098764]
[1718940696943,0.17,132.35,132.33,1.44098764]
[1718940697139,0.34,132.35,132.33,1.44098764]
[1718940697350,0.17,132.34,132.33,1.44098764]
[1718940697631,0.17,132.34,132.31,20.0]
[1718940698034,0.34,132.34,132.26,21.9963]
[1718940698339,0.17,132.33,132.26,21.9963]
[1718940698681,0.34,132.33,132.26,21.9963]
[1718940698874,0.17,132.32,132.26,21.9963]
[1718940699169,0.17,132.33,132.24,21.9963]
[1718940699338,0.17,132.3,132.23,0.8161767]
[1718940699530,9.63,132.28,132.23,0.8161767]
[1718940699835,0.34,132.3,132.23,10.4461767]
[1718940700039,9.63,132.29,132.23,10.4461767]
[1718940700248,9.63,132.29,132.23,0.8161767]
[1718940700454,0.34,132.3,132.23,10.4461767]
[1718940700640,9.8,132.29,132.23,0.8161767]
[1718940700843,0.17,132.29,132.23,0.8161767]
[1718940701043,0.34,132.29,132.23,0.8161767]
[1718940701240,0.34,132.29,132.23,10.4461767]
[1718940701241,0.17,132.28,132.23,10.4461767]
[1718940701561,0.17,132.3,132.24,20.0]
[1718940701747,0.17,132.3,132.23,0.8161767]
[1718940701949,0.34,132.3,132.23,0.8161767]
[1718940702553,0.17,132.29,132.23,0.8161767]
[1718940703234,0.34,132.3,132.23,0.8161767]
[1718940703652,0.17,132.29,132.23,0.8161767]
[1718940703863,0.34,132.3,132.23,0.8161767]
[1718940704045,0.17,132.29,132.23,0.8161767]
[1718940704245,0.17,132.3,132.23,0.8161767]
[1718940704435,0.17,132.31,132.23,0.8161767]
[1718940708359,0.34,132.31,132.23,0.8161767]
[1718940708562,0.17,132.3,132.23,0.8161767]
[1718940708746,0.34,132.3,132.23,0.8161767]
[1718940709071,0.17,132.29,132.23,0.8161767]
[1718940709266,0.34,132.29,132.23,0.8161767]
[1718940710067,21.791,132.32,132.23,0.8161767]
[1718940711661,0.34,132.31,132.23,0.8161767]
[1718940711868,0.17,132.3,132.23,0.8161767]
[1718940717747,0.34,132.31,132.23,0.8161767]
[1718940719756,45.34,132.31,132.23,0.8161767]
[1718940719947,0.17,132.3,132.23,0.8161767]
[1718940723475,9.63,132.29,132.24,9.63]
[1718940723771,0.34,132.28,132.24,9.63]
[1718940723973,0.34,132.28,132.25,20.0]
[1718940724278,28.06790998,132.32,132.26,9.63]
[1718940724458,28.06790998,132.32,132.27,20.0]
[1718940724459,37.69790998,132.32,132.27,20.0]
[1718940724978,9.63,132.31,132.27,20.0]
[1718940725275,9.63,132.31,132.26,9.63]
[1718940725459,9.63,132.31,132.27,20.0]
[1718940726664,0.17,132.3,132.27,20.0]
[1718940727066,0.51,132.3,132.25,9.63]
[1718940727282,0.34,132.3,132.26,20.0]
[1718940727955,0.17,132.29,132.26,20.0]
[1718940728157,0.34,132.29,132.24,9.63]
[1718940728357,0.34,132.29,132.25,20.0]
[1718940729080,0.17,132.28,132.24,9.63]
[1718940729398,0.17,132.28,132.25,20.0]
[1718940730174,9.63,132.27,132.25,20.0]
[1718940730382,0.34,132.26,132.23,20.8161767]
[1718940730881,9.97,132.26,132.24,20.0]
[1718940731068,0.34,132.26,132.23,0.8161767]
[1718940733177,0.17,132.26,132.23,0.8161767]
[1718940733380,0.51,132.26,132.23,0.8161767]
[1718940733569,10.14,132.26,132.23,0.8161767]
[1718940733873,0.51,132.26,132.23,0.8161767]
[1718940734112,10.14,132.26,132.23,0.8161767]
[1718940734456,0.51,132.26,132.23,0.8161767]
[1718940734662,10.14,132.26,132.23,0.8161767]
[1718940734865,9.63,132.24,132.23,0.8161767]
[1718940735092,10.14,132.24,132.23,0.8161767]
[1718940735284,10.14,132.24,132.14,16.0816]
[1718940735479,9.63,132.22,132.16,9.63]
[1718940735663,0.17,132.21,132.14,25.7116]
[1718940735865,0.17,132.21,132.14,16.0816]
[1718940736190,15.4258,132.23,132.14,16.0816]
[1718940736362,15.4258,132.23,132.18,9.63]
[1718940736558,25.0558,132.23,132.14,16.0816]
[1718940736763,9.63,132.23,132.17,9.63]
[1718940736978,15.0858,132.26,132.2,9.63]
[1718940737170,15.0858,132.26,132.21,9.63]
[1718940737371,15.0858,132.26,132.2,9.63]
[1718940737576,24.7158,132.26,132.2,9.63]
[1718940737893,9.63,132.25,132.21,20.0]
[1718940738088,9.63,132.25,132.2,20.0]
[1718940738269,0.34,132.24,132.2,20.0]
[1718940738476,9.97,132.24,132.19,9.63]
[1718940738674,9.97,132.24,132.2,20.0]
[1718940738876,0.17,132.23,132.2,20.0]
[1718940739391,0.17,132.23,132.19,20.0]
[1718940739890,0.17,132.24,132.19,29.63]
[1718940740072,0.17,132.24,132.2,9.63]
[1718940740272,10.14,132.25,132.19,20.0]
[1718940740467,10.14,132.25,132.19,9.63]
[1718940740668,0.51,132.25,132.2,29.63]
[1718940740870,0.51,132.25,132.2,20.0]
[1718940741222,0.51,132.25,132.2,29.63]
[1718940741492,0.51,132.25,132.21,20.0]
[1718940741789,10.14,132.25,132.21,20.0]
[1718940741978,9.63,132.24,132.21,20.0]
[1718940742179,9.63,132.24,132.15,20.0]
[1718940742385,9.63,132.24,132.19,9.63]
[1718940742586,9.63,132.24,132.2,20.0]
[1718940742982,0.51,132.25,132.2,20.0]
[1718940743183,10.14,132.25,132.2,20.0]
[1718940743376,15.0858,132.26,132.22,9.63]
[1718940743690,21.36260344,132.31,132.25,9.63]
[1718940743893,30.99260344,132.31,132.26,29.63]
[1718940744281,30.99260344,132.31,132.26,20.0]
[1718940744992,9.63,132.3,132.26,20.0]
[1718940745187,9.63,132.3,132.25,20.0]
[1718940745394,9.63,132.3,132.17,16.0816]
[1718940745395,28.89,132.3,132.17,16.0816]
[1718940745601,28.89,132.3,132.18,20.0]
[1718940745784,2.34281081,132.29,132.18,20.0]
[1718940745984,0.17,132.28,132.18,20.0]
[1718940746191,0.51,132.28,132.18,20.0]
[1718940747688,16.6135,132.26,132.17,16.0816]
[1718940747876,18.95631081,132.29,132.18,28.89]
[1718940748193,16.6135,132.29,132.19,6.4141]
[1718940748901,16.6135,132.29,132.2,20.0]
[1718940749289,0.34,132.28,132.2,20.0]
[1718940749599,0.17,132.27,132.2,20.0]
[1718940749979,6.3102,132.26,132.18,20.0]
[1718940750322,0.51,132.25,132.18,20.0]
[1718940751114,15.1088,132.24,132.16,20.0]
[1718940751277,0.51,132.23,132.15,20.0]
[1718940752179,0.51,132.23,132.13,20.8120125]
[1718940752380,47.85281081,132.23,132.13,20.8120125]
[1718940752575,6.2996,132.21,132.13,20.8120125]
[1718940752774,0.34,132.2,132.13,0.8120125]
[1718940752991,0.17,132.19,132.13,0.8120125]
[1718940753389,15.0598,132.19,132.13,0.8120125]
[1718940753575,0.51,132.18,132.13,0.8120125]
[1718940753778,15.0598,132.19,132.13,0.8120125]
[1718940754395,0.51,132.18,132.13,0.8120125]
[1718940754575,0.34,132.18,132.13,0.8120125]
[1718940754775,15.0598,132.19,132.13,0.8120125]
[1718940755171,0.17,132.18,132.13,0.8120125]
[1718940755394,0.51,132.18,132.13,0.8120125]
[1718940759533,21.3594,132.16,132.11,20.0]
[1718940759802,47.49200084,132.15,132.09,1.6754233]
[1718940760012,21.3594,132.13,132.09,0.52283019]
[1718940760195,21.3594,132.13,132.01,20.0]
[1718940760196,0.17,132.12,132.01,20.0]
[1718940760381,0.17,132.12,132.06,4.15588546]
[1718940760382,45.51,132.12,132.06,4.15588546]
[1718940760582,45.51,132.12,132.06,1.53808554]
[1718940760897,45.51,132.12,132.01,20.0]
[1718940760898,100.2494,132.11,132.01,20.0]
[1718940761086,2.83200084,132.1,132.01,20.0]
[1718940761305,28.89,132.05,132.01,9.16179463]
[1718940761608,2.66200084,132.04,132.0,99.20584898]
[1718940761785,47.83200084,132.04,132.0,99.20584898]
[1718940762100,2.31175128,132.03,132.0,99.20584898]
[1718940762317,0.34,132.02,132.0,99.20584898]
[1718940762486,0.17,132.01,132.0,97.70584898]
[1718940762682,0.17,132.01,132.0,79.03924898]
[1718940763112,0.17,132.01,132.0,77.03924898]
[1718940763519,2.31175128,132.03,132.0,77.03924898]
[1718940764711,2.31175128,132.03,132.01,20.0]
[1718940765095,6.2996,132.08,132.01,20.0]
[1718940765506,30.0,132.11,132.01,20.0]
[1718940765704,6.2996,132.12,132.01,20.0]
[1718940765906,14.1515577,132.12,132.01,20.0]
[1718940766087,14.1515577,132.12,132.02,45.0]
[1718940766282,14.1515577,132.12,132.03,20.0]
[1718940766520,6.2996,132.12,132.03,20.0]
[1718940766697,12.4938,132.14,132.03,20.0]
[1718940766905,261.3722,132.16,132.04,45.0]
[1718940767220,263.71501081,132.16,132.04,45.0]
[1718940767389,263.71501081,132.16,132.05,20.0]
[1718940767597,263.71501081,132.16,132.06,45.0]
[1718940767892,263.71501081,132.16,132.07,20.0]
[1718940768232,8.61501081,132.16,132.07,20.0]
[1718940769813,0.17,132.15,132.07,20.0]
[1718940769994,0.51,132.15,132.07,20.0]
[1718940770188,45.51,132.15,132.01,20.0]
[1718940770905,2.34281081,132.14,132.01,20.0]
[1718940771085,0.51,132.13,132.01,19.67]
[1718940771900,0.51,132.13,132.0,77.03924898]
[1718940772415,2.34281081,132.12,132.0,77.03924898]
[1718940772596,0.51,132.11,132.0,77.03924898]
[1718940773222,6.2722,132.16,132.01,66.569991]
[1718940773390,6.2722,132.16,132.01,86.569991]
[1718940773696,6.2722,132.16,132.01,76.59]
[1718940774094,6.2722,132.16,132.02,0.17]
[1718940774350,6.2722,132.16,132.02,68.26]
[1718940774487,6.2722,132.16,132.03,42.75]
[1718940774696,20.34214802,132.19,132.05,56.59]
[1718940774890,12.4938,132.19,132.06,20.0]
[1718940775089,12.4938,132.19,132.07,45.0]
[1718940775412,6.2903,132.2,132.08,42.75]
[1718940775615,6.2903,132.2,132.09,101.59]
[1718940775812,6.2903,132.2,132.09,78.84]
[1718940776112,6.2903,132.2,132.1,20.0]
[1718940776294,6.2903,132.2,132.11,45.0]
[1718940776494,12.4938,132.24,132.12,20.0]
[1718940776912,12.4938,132.24,132.13,45.0]
[1718940777097,14.83661081,132.24,132.14,20.0]
[1718940777692,14.83661081,132.24,132.1,20.0]
[1718940777916,45.51,132.23,132.07,20.0]
[1718940778216,2.34281081,132.22,132.07,14.836611]
[1718940778425,0.51,132.21,132.08,20.0]
[1718940779012,0.51,132.21,132.06,20.0]
[1718940779517,0.51,132.21,132.07,45.0]
[1718940779727,2.34281081,132.2,132.08,20.0]
[1718940779903,0.51,132.19,132.09,45.0]
[1718940780101,0.51,132.19,132.1,20.0]
[1718940780514,0.51,132.19,132.11,45.0]
[1718940780829,0.51,132.19,132.12,20.0]
[1718940781314,6.3969,132.18,132.05,22.6945]
[1718940781513,0.51,132.17,132.05,22.6945]
[1718940781901,0.51,132.17,132.06,6.3969]
[1718940782307,6.3969,132.18,132.06,29.1469]
[1718940782712,0.34,132.17,132.07,20.0]
[1718940783313,0.34,132.17,132.08,45.0]
[1718940783518,6.3969,132.18,132.09,20.0]
[1718940783719,0.17,132.17,132.1,45.0]
[1718940783922,0.17,132.17,132.11,20.0]
[1718940784145,0.34,132.17,132.11,20.0]
[1718940784420,0.34,132.17,132.07,20.0]
[1718940784598,0.34,132.17,132.08,45.0]
[1718940784798,6.5669,132.18,132.09,20.0]
[1718940784799,6.3969,132.18,132.09,20.0]
[1718940785008,2.34281081,132.2,132.1,45.0]
[1718940785200,255.1,132.21,132.11,20.0]
[1718940785406,255.1,132.21,132.12,45.0]
[1718940785607,255.1,132.21,132.13,20.0]
[1718940786805,6.6475,132.23,132.14,45.0]
[1718940787010,6.6475,132.23,132.15,20.0]
[1718940788843,6.6475,132.23,132.14,20.0]
[1718940789640,0.17,132.22,132.14,20.0]
[1718940789805,0.51,132.22,132.14,20.0]
[1718940790125,6.6475,132.23,132.14,20.0]
[1718940795123,6.5849,132.26,132.15,0.17]
[1718940795327,6.5849,132.26,132.15,0.51]
[1718940795632,6.5849,132.26,132.15,0.17]
[1718940795830,6.5849,132.26,132.14,42.75]
[1718940796853,255.1,132.27,132.14,42.75]
[1718940796854,255.1,132.27,132.16,28.8305]
[1718940797148,255.1,132.27,132.17,43.26]
[1718940800338,6.5849,132.29,132.17,43.26]
[1718940801253,6.5849,132.29,132.19,22.75]
[1718940801458,6.5849,132.29,132.2,20.0]
[1718940804282,12.4938,132.32,132.2,42.75]
[1718940804431,261.1608,132.33,132.22,6.1545]
[1718940804843,261.1608,132.33,132.23,20.0]
[1718940805034,6.0608,132.33,132.23,20.0]
[1718940805741,12.4938,132.36,132.23,20.0]
[1718940806052,18.5546,132.36,132.24,15.5918]
[1718940806257,18.5546,132.36,132.25,20.0]
[1718940806643,24.69978312,132.36,132.25,20.0]
[1718940807339,0.17,132.35,132.25,20.0]
[1718940807542,0.51,132.35,132.25,20.0]
[1718940809338,6.0608,132.36,132.25,20.0]
[1718940810452,0.17,132.35,132.25,20.0]
[1718940811149,255.1,132.38,132.25,42.75]
[1718940811334,255.1,132.38,132.26,0.17]
[1718940811747,255.1,132.38,132.26,0.34]
[1718940812272,255.1,132.38,132.26,0.17]
[1718940812761,0.17,132.37,132.25,20.0]
[1718940813345,0.51,132.37,132.25,20.0]
[1718940815360,0.51,132.37,132.27,28.85]
[1718940815538,0.51,132.37,132.28,20.0]
[1718940815952,0.17,132.37,132.28,20.0]
[1718940817262,0.34,132.37,132.28,20.0]
[1718940819574,0.17,132.36,132.28,20.0]
[1718940819777,0.34,132.36,132.27,20.0]
[1718940819967,0.17,132.35,132.27,20.0]
[1718940820157,0.34,132.35,132.27,20.0]
[1718940820347,0.17,132.34,132.27,20.0]
[1718940820545,0.34,132.34,132.27,20.0]
[1718940820751,0.17,132.33,132.27,20.0]
[1718940820953,0.34,132.33,132.27,20.0]
[1718940821450,262.94020595,132.38,132.27,20.0]
[1718940821658,0.51,132.37,132.27,20.0]
[1718940822467,2.34281081,132.36,132.27,20.0]
[1718940822798,0.51,132.35,132.27,20.0]
[1718940824080,12.4938,132.34,132.27,20.0]
[1718940824369,6.6528,132.32,132.21,16.1749]
[1718940824675,0.51,132.31,132.21,16.1749]
[1718940824877,45.51,132.31,132.21,16.1749]
[1718940825496,45.51,132.31,132.19,6.3488]
[1718940825670,2.34281081,132.3,132.19,6.3488]
[1718940825846,0.51,132.29,132.19,6.3488]
[1718940826052,2.34281081,132.28,132.19,6.3488]
[1718940826265,0.51,132.27,132.19,6.3488]
[1718940826851,2.34281081,132.28,132.19,6.3488]
[1718940827172,255.1,132.31,132.19,6.3488]
[1718940827472,257.44281081,132.31,132.2,20.0]
[1718940828074,0.34,132.3,132.2,20.0]
[1718940829277,45.34,132.3,132.2,20.0]
[1718940829761,0.17,132.29,132.2,20.0]
[1718940831856,0.17,132.3,132.2,20.0]
[1718940833075,0.34,132.3,132.2,20.0]
[1718940833264,0.17,132.29,132.2,20.0]
[1718940834689,2.34281081,132.28,132.19,6.3488]
[1718940834892,0.51,132.27,132.19,6.3488]
[1718940835059,13.0038,132.27,132.18,16.4644]
[1718940836478,6.3603,132.26,132.19,20.0]
[1718940836655,0.51,132.25,132.18,20.0]
[1718940839073,6.3603,132.26,132.18,20.0]
[1718940839474,0.17,132.25,132.18,20.0]
[1718940839673,6.3603,132.26,132.18,20.0]
[1718940839880,0.17,132.25,132.18,20.0]
[1718940840187,6.3603,132.26,132.18,20.0]
[1718940840360,0.17,132.25,132.18,20.0]
[1718940840563,0.34,132.25,132.18,20.0]
[1718940841782,0.17,132.24,132.18,20.0]
[1718940841959,0.17,132.25,132.18,20.0]
[1718940842160,0.34,132.25,132.18,20.0]
[1718940842361,6.3603,132.26,132.18,20.0]
[1718940843079,12.4938,132.27,132.18,20.0]
[1718940843289,2.34281081,132.28,132.18,42.75]
[1718940843508,2.34281081,132.28,132.22,29.1905]
[1718940843663,2.34281081,132.28,132.24,16.0263]
[1718940843868,2.34281081,132.28,132.25,20.0]
[1718940844687,2.34281081,132.28,132.25,42.75]
[1718940844889,6.317,132.38,132.26,29.5147]
[1718940845076,6.317,132.38,132.27,0.34]
[1718940845381,6.317,132.38,132.28,22.92]
[1718940845557,6.317,132.38,132.29,20.0]
[1718940846274,6.317,132.38,132.28,20.0]
[1718940846469,6.317,132.38,132.27,20.0]
[1718940847581,0.51,132.37,132.27,20.0]
[1718940847970,6.317,132.38,132.27,42.75]
[1718940849966,18.8176,132.41,132.29,22.75]
[1718940850166,18.8176,132.41,132.3,42.92]
[1718940850378,18.8176,132.41,132.3,42.75]
[1718940850986,18.8176,132.41,132.3,20.0]
[1718940851291,18.8176,132.41,132.29,42.75]
[1718940851469,18.8176,132.41,132.3,0.17]
[1718940852083,18.8176,132.41,132.29,20.0]
[1718940852400,0.34,132.4,132.29,20.0]
[1718940852869,0.17,132.39,132.29,20.0]
[1718940853065,0.34,132.4,132.3,2.34861028]
[1718940854179,18.8176,132.41,132.31,0.17]
[1718940854367,18.8176,132.41,132.31,43.09]
[1718940854570,18.8176,132.41,132.32,2.51825529]
[1718940854982,18.8176,132.41,132.33,2.34807784]
[1718940857371,18.8176,132.41,132.33,25.09807784]
[1718940857579,18.8176,132.41,132.34,0.17]
[1718940857882,18.8176,132.41,132.34,20.17]
[1718940859085,18.8176,132.41,132.35,2.34772301]
[1718940861279,0.51,132.4,132.35,2.34772301]
[1718940862671,0.34,132.4,132.35,2.34772301]
[1718940862874,18.8176,132.41,132.35,2.34772301]
[1718940863775,0.34,132.4,132.35,2.34772301]
[1718940864198,18.8176,132.41,132.35,2.34772301]
[1718940868096,0.8161767,132.42,132.35,22.34772301]
[1718940870181,0.8161767,132.42,132.35,45.09772301]
[1718940870497,0.8161767,132.42,132.36,0.34]
[1718940870678,0.8161767,132.42,132.37,58.3143]